bitfinex/quotes_SOLUSD_20250306
["timestamp","ask_amount","ask_price","bid_price","bid_amount"]
[1741269675032,7.88,147.15,147.11,312.21324235]
[1741269675442,7.88,147.15,147.12,0.14216157]
[1741269675638,14.6759,147.15,147.12,0.14216157]
[1741269675946,31.6653,147.15,147.12,0.14216157]
[1741269676142,14.6759,147.15,147.12,0.14216157]
[1741269676442,7.88,147.15,147.12,0.14216157]
[1741269677441,14.6758,147.15,147.12,0.14216157]
[1741269677738,7.88,147.15,147.12,0.14216157]
[1741269678247,14.6759,147.15,147.12,0.14216157]
[1741269678451,14.6759,147.15,147.14,312.14216157]
[1741269678636,6.7944,147.19,147.15,0.14216157]
[1741269678943,0.03,147.2,147.17,0.14216157]
[1741269679241,0.03,147.2,147.17,39.51215758]
[1741269679422,0.03,147.2,147.17,46.30685758]
[1741269679822,0.03,147.2,147.19,31.28245758]
[1741269680029,0.03,147.21,147.2,19.07613357]
[1741269680258,0.03,147.21,147.2,131.51642958]
[1741269680431,0.03,147.21,147.2,81.44216157]
[1741269680629,0.03,147.21,147.18,0.14216157]
[1741269680953,0.03,147.21,147.19,18.79181043]
[1741269681128,0.03,147.21,147.2,31.28245758]
[1741269681449,0.03,147.21,147.2,38.07585758]
[1741269681751,0.03,147.21,147.2,138.30982958]
[1741269681953,0.03,147.25,147.21,19.07613357]
[1741269682173,0.03,147.25,147.24,0.14216157]
[1741269682649,0.03,147.25,147.22,31.28245758]
[1741269683147,0.03,147.25,147.19,1.42584729]
[1741269683332,0.03,147.25,147.18,0.28432314]
[1741269683529,0.03,147.25,147.18,81.58432314]
[1741269683850,0.03,147.25,147.21,0.14216157]
[1741269684749,0.03,147.25,147.18,81.58432314]
[1741269684750,0.03,147.25,147.23,0.14216157]
[1741269685121,0.03,147.25,147.21,0.14216157]
[1741269685322,0.03,147.25,147.21,112.58245758]
[1741269685545,6.7899,147.28,147.25,0.14216157]
[1741269685722,6.7894,147.29,147.25,0.14216157]
[1741269686837,80.33,147.31,147.27,0.14216157]
[1741269687039,88.21,147.33,147.27,31.28245758]
[1741269687244,6.787,147.34,147.29,0.14216157]
[1741269687560,6.787,147.34,147.29,31.28245758]
[1741269687741,87.1466,147.35,147.31,0.14216157]
[1741269687943,0.03,147.35,147.32,0.14216157]
[1741269688342,6.8165,147.35,147.32,0.14216157]
[1741269688537,6.8165,147.35,147.26,31.14029601]
[1741269688738,80.33,147.34,147.25,120.09619601]
[1741269688943,6.8165,147.35,147.33,0.14216157]
[1741269689139,0.03,147.35,147.33,0.14216157]
[1741269689698,0.03,147.35,147.32,38.07025758]
[1741269689881,0.03,147.35,147.34,0.14216157]
[1741269690239,0.03,147.35,147.29,89.4821]
[1741269690240,7.91,147.35,147.29,8.1821]
[1741269690441,7.91,147.35,147.26,112.44029601]
[1741269690663,7.91,147.35,147.29,0.14216157]
[1741269690664,80.33,147.34,147.29,0.14216157]
[1741269690964,80.33,147.34,147.28,31.14029601]
[1741269691170,80.33,147.34,147.26,112.44029601]
[1741269691470,80.33,147.34,147.26,81.3]
[1741269691671,87.1174,147.33,147.25,8.1821]
[1741269691841,94.13,147.32,147.23,0.21324235]
[1741269692038,94.13,147.31,147.23,0.21324235]
[1741269692261,0.28432314,147.3,147.17,112.44029601]
[1741269692570,101.99,147.29,147.19,312.0]
[1741269692772,101.99,147.29,147.2,0.14216157]
[1741269692944,94.13,147.28,147.2,0.14216157]
[1741269693281,94.13,147.27,147.17,31.14029601]
[1741269693445,94.13,147.26,147.17,31.14029601]
[1741269693650,6.7911,147.25,147.17,37.93489601]
[1741269694172,6.7911,147.25,147.18,31.28245758]
[1741269694344,100.9207,147.26,147.21,0.14216157]
[1741269694545,87.1207,147.26,147.21,0.14216157]
[1741269694857,94.13,147.28,147.2,31.14029601]
[1741269695056,88.19,147.28,147.23,0.14216157]
[1741269695262,94.9798,147.28,147.23,0.14216157]
[1741269695562,7.86,147.28,147.25,0.14216157]
[1741269695764,7.86,147.32,147.25,38.07355758]
[1741269695964,7.86,147.32,147.31,312.14216157]
[1741269696781,6.8166,147.35,147.32,0.14216157]
[1741269696962,0.03,147.35,147.32,0.14216157]
[1741269697351,0.03,147.35,147.31,31.28245758]
[1741269697592,0.03,147.35,147.34,0.14216157]
[1741269698557,12.5191,147.4,147.35,0.28432314]
[1741269698558,0.03,147.4,147.35,0.28432314]
[1741269698760,0.03,147.4,147.39,31.28245758]
[1741269699669,0.03,147.4,147.39,0.14216157]
[1741269699873,0.03,147.4,147.39,312.14216157]
[1741269700184,0.03,147.4,147.29,31.14029601]
[1741269700353,114.6873,147.39,147.27,89.2341]
[1741269700674,114.6873,147.39,147.27,139.68671855]
[1741269700877,114.6873,147.39,147.29,0.14216157]
[1741269701061,94.41432314,147.38,147.26,50.45261855]
[1741269701256,0.28432314,147.36,147.24,0.21324235]
[1741269701650,23.7529,147.35,147.24,50.6658609]
[1741269701877,94.13,147.34,147.24,50.6658609]
[1741269702076,7.86,147.33,147.27,0.14216157]
[1741269702259,7.86,147.33,147.27,50.45261855]
[1741269702450,6.7865,147.35,147.3,50.45261855]
[1741269702772,6.7865,147.35,147.31,0.14216157]
[1741269702977,6.786,147.37,147.35,0.14216157]
[1741269703449,169.54,147.38,147.33,0.14216157]
[1741269703450,6.7852,147.38,147.33,0.14216157]
[1741269703646,87.1147,147.39,147.33,50.59478012]
[1741269703846,87.1147,147.39,147.35,0.14216157]
[1741269704072,6.7847,147.39,147.35,0.14216157]
[1741269704275,6.8143,147.4,147.35,0.14216157]
[1741269704455,6.8143,147.4,147.34,0.14216157]
[1741269704961,80.33,147.39,147.29,50.45261855]
[1741269705160,80.33,147.38,147.31,0.14216157]
[1741269705359,80.33,147.38,147.28,50.45261855]
[1741269705567,80.33,147.38,147.31,0.14216157]
[1741269705766,23.7497,147.37,147.28,50.45261855]
[1741269706174,12.4701,147.35,147.24,50.6658609]
[1741269706385,7.86,147.34,147.25,0.14216157]
[1741269706552,80.33,147.33,147.28,312.0]
[1741269706875,94.13,147.32,147.25,0.14216157]
[1741269707063,0.28432314,147.32,147.24,0.21324235]
[1741269707264,94.13,147.33,147.25,0.14216157]
[1741269707265,80.33,147.31,147.25,0.14216157]
[1741269707868,13.8,147.33,147.29,0.14216157]
[1741269707869,7.86,147.32,147.29,0.14216157]
[1741269708381,7.86,147.32,147.26,0.14216157]
[1741269709079,7.86,147.32,147.25,57.38578012]
[1741269709257,7.86,147.32,147.27,0.14216157]
[1741269709460,87.1175,147.33,147.29,50.45261855]
[1741269709461,7.86,147.33,147.29,50.45261855]
[1741269709652,0.03,147.32,147.3,0.14216157]
[1741269709854,0.03,147.32,147.31,6.93056157]
[1741269710174,0.03,147.32,147.31,0.14216157]
[1741269710861,0.03,147.32,147.31,50.59478012]
[1741269711065,0.03,147.32,147.31,0.14216157]
[1741269711683,0.03,147.32,147.31,50.59478012]
[1741269711851,0.03,147.32,147.31,138.96750326]
[1741269712682,0.03,147.32,147.31,450.96750326]
[1741269713063,0.03,147.4,147.35,0.42648471]
[1741269713273,0.03,147.4,147.38,0.14216157]
[1741269713960,0.03,147.4,147.37,0.14216157]
[1741269714464,0.03,147.4,147.36,0.14216157]
[1741269714784,0.03,147.4,147.3,6.7888]
[1741269714979,80.36,147.4,147.31,50.45261855]
[1741269715187,94.13,147.39,147.29,50.45261855]
[1741269715396,80.33,147.38,147.28,131.75261855]
[1741269715566,7.86,147.37,147.28,131.75261855]
[1741269715768,6.7865,147.35,147.28,81.3]
[1741269715968,6.7865,147.35,147.24,81.51324235]
[1741269715969,80.33,147.34,147.24,81.51324235]
[1741269716177,94.13,147.33,147.29,312.0]
[1741269716483,80.33,147.32,147.24,0.21324235]
[1741269716690,88.19,147.31,147.24,0.21324235]
[1741269717261,88.19,147.31,147.25,0.14216157]
[1741269717983,6.7888,147.3,147.25,0.14216157]
[1741269718197,6.7888,147.3,147.24,0.21324235]
[1741269718361,6.7888,147.3,147.25,0.14216157]
[1741269719185,6.7888,147.3,147.25,50.59478012]
[1741269719487,6.7888,147.3,147.29,312.14216157]
[1741269719785,6.7874,147.33,147.3,0.14216157]
[1741269719967,80.33,147.34,147.3,0.14216157]
[1741269719968,7.86,147.32,147.3,0.14216157]
[1741269720284,88.19,147.32,147.28,0.14216157]
[1741269720483,80.33,147.31,147.24,0.21324235]
[1741269720674,80.33,147.3,147.24,0.21324235]
[1741269720989,94.13,147.29,147.16,89.4518]
[1741269721161,94.13,147.29,147.17,50.45261855]
[1741269721356,94.13,147.29,147.24,0.14216157]
[1741269721557,94.13,147.28,147.18,50.45261855]
[1741269721892,80.33,147.27,147.21,57.24531855]
[1741269722063,33.9352,147.34,147.24,0.14216157]
[1741269722064,7.86,147.29,147.24,0.14216157]
[1741269722659,7.86,147.29,147.24,50.59478012]
[1741269722892,80.33,147.28,147.21,50.45261855]
[1741269723079,80.33,147.27,147.2,50.45261855]
[1741269723376,80.33,147.27,147.22,0.14216157]
[1741269723972,80.33,147.27,147.21,0.14216157]
[1741269724181,80.33,147.27,147.21,57.38778012]
[1741269724378,7.86,147.29,147.24,50.59478012]
[1741269724787,7.86,147.31,147.22,0.28432314]
[1741269724975,7.86,147.31,147.23,0.14216157]
[1741269725289,80.33,147.3,147.23,0.14216157]
[1741269725989,80.33,147.3,147.28,0.14216157]
[1741269726178,87.1193,147.29,147.28,0.14216157]
[1741269726375,88.19,147.31,147.28,0.14216157]
[1741269726576,88.19,147.31,147.28,50.59478012]
[1741269727288,80.33,147.37,147.31,0.42648471]
[1741269727466,7.84,147.38,147.34,0.14216157]
[1741269727665,14.6251,147.38,147.34,0.14216157]
[1741269728082,7.84,147.38,147.32,0.14216157]
[1741269728282,7.84,147.38,147.34,0.14216157]
[1741269728469,14.6252,147.38,147.34,0.14216157]
[1741269728687,31.5881,147.38,147.32,0.14216157]
[1741269729281,7.84,147.38,147.32,50.59478012]
[1741269729476,174.748,147.4,147.38,0.14216157]
[1741269729701,7.84,147.39,147.38,0.14216157]
[1741269729893,182.588,147.4,147.38,0.14216157]
[1741269730083,189.3724,147.4,147.34,0.14216157]
[1741269730289,189.3724,147.4,147.34,50.59478012]
[1741269730603,27.7324,147.4,147.34,50.59478012]
[1741269730784,7.87,147.4,147.36,50.59478012]
[1741269730987,7.87,147.4,147.38,0.14216157]
[1741269731291,0.03,147.4,147.39,0.14216157]
[1741269731487,6.8142,147.4,147.39,0.14216157]
[1741269731713,0.03,147.4,147.36,50.87910326]
[1741269731907,6.8143,147.4,147.36,0.14216157]
[1741269732406,6.8143,147.4,147.36,57.66510326]
[1741269732407,0.03,147.4,147.36,57.66510326]
[1741269732704,0.03,147.4,147.38,50.59478012]
[1741269733007,0.03,147.4,147.39,312.14216157]
[1741269733813,0.03,147.4,147.39,362.87910326]
[1741269734377,0.03,147.4,147.39,450.96380326]
[1741269734891,0.03,147.4,147.39,501.41642181]
[1741269735097,0.03,147.44,147.43,0.14216157]
[1741269735271,0.03,147.44,147.43,50.87910326]
[1741269735471,0.03,147.44,147.43,50.59478012]
[1741269735668,0.03,147.44,147.43,50.87910326]
[1741269735871,7.87,147.44,147.42,1.3]
[1741269736467,7.87,147.44,147.43,0.14216157]
[1741269736693,0.03,147.44,147.43,50.59478012]
[1741269736892,6.8124,147.44,147.43,0.14216157]
[1741269737302,6.8124,147.44,147.42,1.3]
[1741269737498,88.17,147.43,147.42,1.3]
[1741269737715,88.17,147.43,147.42,0.0001]
[1741269737881,100.754,147.43,147.42,0.0001]
[1741269738383,107.5368,147.43,147.42,312.0001]
[1741269738582,107.5368,147.43,147.42,0.0001]
[1741269739419,27.2068,147.43,147.42,0.0001]
[1741269740285,14.6228,147.43,147.42,0.0001]
[1741269741586,14.6228,147.43,147.42,312.14226157]
[1741269742304,14.6228,147.43,147.42,0.14226157]
[1741269742507,7.84,147.43,147.42,0.14226157]
[1741269742683,14.6228,147.43,147.42,0.14226157]
[1741269743587,7.87,147.44,147.43,0.14216157]
[1741269743881,14.6524,147.44,147.43,0.14216157]
[1741269744086,14.6524,147.44,147.42,0.0001]
[1741269744394,14.6525,147.44,147.42,0.0001]
[1741269744596,80.8,147.43,147.42,0.0001]
[1741269745181,80.8,147.43,147.42,312.14226157]
[1741269745502,80.8,147.43,147.42,312.0001]
[1741269745884,80.8,147.43,147.42,312.14226157]
[1741269746406,7.87,147.44,147.43,0.14216157]
[1741269746710,14.6524,147.44,147.43,0.14216157]
[1741269746887,14.6524,147.44,147.42,0.0001]
[1741269747097,7.87,147.44,147.42,0.0001]
[1741269747291,0.03,147.44,147.42,0.0001]
[1741269748191,6.8126,147.44,147.42,0.0001]
[1741269748706,0.03,147.44,147.42,0.0001]
[1741269749285,0.03,147.44,147.43,31.13692539]
[1741269749516,0.03,147.44,147.43,343.42124853]
[1741269750305,0.03,147.44,147.43,350.20404853]
[1741269750495,0.03,147.44,147.43,319.20928471]
[1741269750703,0.03,147.44,147.43,350.20404853]
[1741269750917,0.03,147.44,147.43,312.0]
[1741269751210,0.03,147.44,147.42,0.0001]
[1741269751787,0.03,147.44,147.42,37.92012539]
[1741269751998,0.03,147.44,147.43,0.14216157]
[1741269752508,0.03,147.44,147.43,31.42124853]
[1741269753413,0.03,147.44,147.43,46.36704853]
[1741269754006,0.03,147.44,147.43,39.58424853]
[1741269754187,0.03,147.44,147.43,351.58424853]
[1741269754512,0.03,147.44,147.43,358.36704853]
[1741269755313,0.03,147.47,147.46,20.14216157]
[1741269755520,0.03,147.47,147.46,132.72124853]
[1741269755714,0.03,147.47,147.46,134.14446849]
[1741269755929,0.03,147.47,147.46,132.72124853]
[1741269756213,0.03,147.5,147.49,20.42648471]
[1741269756415,0.03,147.5,147.49,117.47072073]
[1741269756591,0.03,147.5,147.49,147.04264853]
[1741269756791,0.03,147.5,147.49,178.03741235]
[1741269756991,0.03,147.5,147.49,183.59494139]
[1741269757207,0.03,147.5,147.49,178.03741235]
[1741269758302,0.03,147.5,147.49,58.96254853]
[1741269758507,0.03,147.5,147.49,370.96254853]
[1741269760103,0.03,147.5,147.49,408.73741235]
[1741269760606,0.03,147.5,147.49,370.96254853]
[1741269761323,0.03,147.5,147.49,377.74264853]
[1741269761537,0.03,147.5,147.49,408.73741235]
[1741269762136,0.03,147.5,147.49,490.03741235]
[1741269763026,0.03,147.51,147.5,15.73018471]
[1741269763331,0.03,147.52,147.51,2.42648471]
[1741269763528,0.03,147.59,147.54,92.31331235]
[1741269763822,0.03,147.6,147.59,20.14216157]
[1741269764003,0.03,147.6,147.59,51.42124853]
[1741269764207,0.03,147.6,147.59,0.14216157]
[1741269764606,0.03,147.6,147.59,31.13692539]
[1741269764817,0.03,147.6,147.59,0.14216157]
[1741269765618,0.03,147.6,147.59,31.13692539]
[1741269765817,0.03,147.6,147.59,0.14216157]
[1741269766334,0.03,147.6,147.59,312.14216157]
[1741269766627,0.03,147.6,147.59,343.13692539]
[1741269766835,0.03,147.6,147.59,312.14216157]
[1741269768423,80.8,147.59,147.5,102.9182]
[1741269768607,80.8,147.58,147.5,8.3145]
[1741269768811,80.8,147.58,147.51,30.99476382]
[1741269769012,80.8,147.58,147.52,0.14216157]
[1741269769229,167.1,147.57,147.48,31.20800617]
[1741269769441,7.82,147.56,147.48,31.20800617]
[1741269769633,80.8,147.55,147.52,30.99476382]
[1741269769805,80.8,147.55,147.49,20.0]
[1741269769806,80.8,147.55,147.53,30.99476382]
[1741269770001,80.8,147.55,147.54,0.14216157]
[1741269770534,6.7778,147.54,147.48,112.50800617]
[1741269770836,6.7778,147.54,147.49,30.99476382]
[1741269770837,80.8,147.53,147.49,30.99476382]
[1741269771047,80.8,147.53,147.51,31.13692539]
[1741269771209,80.8,147.53,147.5,30.99476382]
[1741269771415,80.8,147.53,147.52,312.14216157]
[1741269771632,80.8,147.53,147.52,343.13692539]
[1741269771810,80.8,147.53,147.52,343.42124853]
[1741269772012,7.82,147.56,147.54,0.14216157]
[1741269772328,87.5759,147.58,147.54,0.14216157]
[1741269772529,80.8,147.58,147.54,0.14216157]
[1741269772713,80.8,147.58,147.54,31.13692539]
[1741269773031,80.8,147.58,147.52,0.14216157]
[1741269773032,87.576,147.58,147.52,0.14216157]
[1741269773420,80.8,147.57,147.52,0.14216157]
[1741269773620,80.8,147.57,147.53,0.14216157]
[1741269774335,80.8,147.57,147.55,0.14216157]
[1741269774742,80.8,147.57,147.53,0.14216157]
[1741269774931,80.8,147.56,147.53,0.14216157]
[1741269775234,80.8,147.55,147.51,37.77376382]
[1741269775435,80.8,147.55,147.52,0.14216157]
[1741269775933,80.8,147.54,147.5,0.033]
[1741269776120,88.62,147.54,147.5,0.033]
[1741269776634,80.8,147.54,147.53,0.14216157]
[1741269776814,87.576,147.58,147.53,31.13692539]
[1741269777138,80.8,147.57,147.52,0.14216157]
[1741269777317,80.8,147.57,147.54,30.99476382]
[1741269777518,98.7334,147.59,147.55,0.14216157]
[1741269777519,93.2334,147.59,147.55,0.14216157]
[1741269778030,93.2334,147.59,147.55,31.13692539]
[1741269778235,93.2334,147.59,147.58,312.14216157]
[1741269779937,80.8,147.59,147.58,312.14216157]
[1741269780543,87.5755,147.59,147.58,312.14216157]
[1741269780843,167.1,147.58,147.51,50.99476382]
[1741269781047,167.1,147.57,147.51,50.99476382]
[1741269781348,167.1,147.57,147.52,0.14216157]
[1741269781527,167.1,147.57,147.54,0.14216157]
[1741269781722,80.8,147.57,147.56,0.14216157]
[1741269781922,93.0755,147.59,147.56,0.14216157]
[1741269782233,86.3,147.58,147.5,31.02776382]
[1741269782438,80.8,147.56,147.5,0.033]
[1741269782632,7.8,147.55,147.5,0.17516157]
[1741269782830,7.8,147.55,147.53,0.14216157]
[1741269783449,80.8,147.57,147.53,0.14216157]
[1741269783648,80.8,147.57,147.54,31.13692539]
[1741269783955,80.8,147.59,147.57,0.14216157]
[1741269784454,87.5755,147.59,147.56,0.14216157]
[1741269784769,80.8,147.59,147.56,38.19794853]
[1741269784955,0.03,147.6,147.59,0.14216157]
[1741269785125,0.03,147.6,147.59,31.13692539]
[1741269785450,0.03,147.6,147.59,0.14216157]
[1741269786054,6.805,147.6,147.59,0.14216157]
[1741269786220,0.03,147.6,147.57,0.14216157]
[1741269786520,22.56930485,147.59,147.57,31.13692539]
[1741269787160,110.14490485,147.59,147.57,0.14216157]
[1741269787442,80.8,147.59,147.58,312.14216157]
[1741269788226,0.03,147.6,147.59,0.14216157]
[1741269788442,0.03,147.6,147.59,31.13692539]
[1741269788941,0.03,147.6,147.59,37.91242539]
[1741269789247,0.03,147.6,147.59,38.19674853]
[1741269790527,1.7708206,147.62,147.59,38.19674853]
[1741269790742,1.7708206,147.62,147.61,82.41601235]
[1741269790938,0.03,147.65,147.64,7.19968471]
[1741269791165,0.03,147.65,147.64,120.91606066]
[1741269791166,0.0001,147.65,147.64,120.91606066]
[1741269791359,0.03,147.68,147.67,20.42648471]
[1741269791658,0.03,147.68,147.67,446.14246386]
[1741269791865,0.03,147.68,147.67,444.72124853]
[1741269792367,0.03,147.74,147.68,0.42648471]
[1741269792565,0.03,147.74,147.71,51.13692539]
[1741269792869,0.03,147.74,147.71,51.42124853]
[1741269793163,0.03,147.74,147.71,31.13692539]
[1741269793747,0.03,147.74,147.71,0.14216157]
[1741269794267,7.83,147.74,147.71,0.14216157]
[1741269795063,80.83,147.72,147.71,0.14216157]
[1741269795271,80.83,147.72,147.65,30.99476382]
[1741269795474,86.3,147.71,147.61,6.7746]
[1741269795675,80.8,147.7,147.66,312.0]
[1741269795854,80.8,147.69,147.66,312.0]
[1741269796056,174.9,147.68,147.6,31.20800617]
[1741269796248,167.1,147.67,147.6,0.21324235]
[1741269796565,167.1,147.66,147.6,0.21324235]
[1741269796867,167.1,147.65,147.6,0.21324235]
[1741269797052,190.8062,147.64,147.61,0.14216157]
[1741269797266,190.8062,147.64,147.6,0.21324235]
[1741269797452,190.8062,147.64,147.61,0.14216157]
[1741269797871,190.8062,147.64,147.6,0.21324235]
[1741269798569,190.8062,147.64,147.61,0.14216157]
[1741269799074,190.8062,147.64,147.61,312.0]
[1741269799283,190.8062,147.64,147.62,0.14216157]
[1741269800345,0.28432314,147.62,147.58,0.033]
[1741269800546,174.9,147.61,147.58,0.033]
[1741269801049,6.775,147.6,147.58,0.033]
[1741269801746,181.6747,147.61,147.58,0.033]
[1741269802161,12.2959,147.63,147.58,0.033]
[1741269802347,88.6,147.64,147.62,0.14216157]
[1741269802559,7.8,147.64,147.62,50.3938836]
[1741269803448,7.8,147.64,147.63,312.14216157]
[1741269805074,181.6709,147.7,147.64,0.14216157]
[1741269805267,167.1,147.69,147.64,0.14216157]
[1741269805471,174.9,147.69,147.63,0.14216157]
[1741269805670,167.1,147.68,147.63,0.14216157]
[1741269805865,167.1,147.68,147.59,50.25172203]
[1741269806052,167.1,147.67,147.58,50.28472203]
[1741269806246,167.1,147.67,147.59,0.14216157]
[1741269806471,167.1,147.67,147.59,50.25172203]
[1741269806674,167.1,147.67,147.59,0.14216157]
[1741269807155,190.803,147.66,147.59,0.14216157]
[1741269807364,190.803,147.66,147.58,0.033]
[1741269808071,13.0167,147.65,147.58,0.033]
[1741269808270,167.1,147.64,147.58,0.033]
[1741269808470,7.78,147.63,147.61,0.14216157]
[1741269808772,0.28432314,147.61,147.58,0.033]
[1741269808984,167.1,147.6,147.58,0.033]
[1741269809148,167.1,147.6,147.58,0.0001]
[1741269809149,6.7755,147.59,147.58,0.0001]
[1741269810366,7.05982314,147.59,147.58,0.0001]
[1741269810882,6.7755,147.59,147.58,0.0001]
[1741269811077,0.28432314,147.6,147.58,0.0001]
[1741269811482,161.64432314,147.6,147.58,0.0001]
[1741269811776,161.36,147.6,147.58,0.0001]
[1741269813358,6.7755,147.59,147.58,0.0001]
[1741269815183,168.1351,147.6,147.59,0.14216157]
[1741269815383,175.9151,147.6,147.59,0.14216157]
[1741269815878,171.3390488,147.6,147.59,0.14216157]
[1741269816472,222.43627194,147.6,147.53,0.033]
[1741269816663,0.28432314,147.59,147.53,0.033]
[1741269817067,0.28432314,147.57,147.53,0.033]
[1741269817582,65.3076,147.56,147.5,0.033]
[1741269818381,2.28432314,147.55,147.43,7.7202]
[1741269818581,20.0,147.51,147.43,0.033]
[1741269818791,20.0,147.51,147.43,50.28472203]
[1741269818967,20.0,147.51,147.45,50.25172203]
[1741269818968,167.1,147.5,147.45,50.25172203]
[1741269819280,80.8,147.49,147.46,50.25172203]
[1741269819479,174.88,147.53,147.5,0.14216157]
[1741269819802,80.8,147.52,147.5,0.14216157]
[1741269820163,80.8,147.52,147.49,0.14216157]
[1741269820568,80.8,147.52,147.51,312.14216157]
[1741269821485,7.78,147.53,147.52,0.14216157]
[1741269821861,14.5582,147.53,147.48,8.1597]
[1741269822060,14.5582,147.53,147.44,7.8428]
[1741269822301,167.1,147.52,147.44,64.87672203]
[1741269822475,167.1,147.52,147.45,50.25172203]
[1741269822681,80.8,147.52,147.5,0.14216157]
[1741269823484,167.1,147.51,147.44,58.09452203]
[1741269823694,6.7801,147.49,147.43,0.033]
[1741269823898,19.8014,147.49,147.43,0.033]
[1741269824367,167.1,147.5,147.45,50.3938836]
[1741269824566,173.8796,147.5,147.49,0.14216157]
[1741269824792,93.0787,147.52,147.49,0.14216157]
[1741269825087,93.0787,147.52,147.43,23.7729]
[1741269825088,7.78,147.51,147.47,50.3938836]
[1741269825279,7.78,147.51,147.5,50.3938836]
[1741269825479,86.3,147.55,147.5,50.3938836]
[1741269825480,6.7777,147.55,147.5,50.3938836]
[1741269825687,14.5577,147.55,147.5,0.14216157]
[1741269825885,7.78,147.55,147.5,57.1733836]
[1741269826082,14.5573,147.55,147.5,57.1733836]
[1741269826267,14.5573,147.55,147.5,0.14216157]
[1741269826472,7.78,147.55,147.5,31.09229208]
[1741269826677,7.78,147.55,147.51,0.14216157]
[1741269826878,14.5574,147.55,147.51,0.14216157]
[1741269827076,14.5574,147.55,147.5,0.14216157]
[1741269827484,31.5008,147.55,147.5,0.14216157]
[1741269827685,31.5008,147.55,147.47,0.14216157]
[1741269827894,86.3,147.54,147.47,31.09229208]
[1741269828073,86.3,147.54,147.53,0.14216157]
[1741269828273,14.5574,147.55,147.53,0.14216157]
[1741269828683,14.5574,147.55,147.49,0.14216157]
[1741269828876,80.8,147.53,147.49,0.14216157]
[1741269829083,80.8,147.53,147.5,0.14216157]
[1741269829310,80.8,147.53,147.5,31.09229208]
[1741269829483,88.58,147.55,147.52,0.14216157]
[1741269829792,80.8,147.55,147.53,0.14216157]
[1741269830395,80.8,147.55,147.52,31.09229208]
[1741269831198,87.5774,147.55,147.5,30.95013051]
[1741269831496,87.5774,147.55,147.5,0.14216157]
[1741269831696,87.5774,147.55,147.54,312.14216157]
[1741269831876,80.8,147.55,147.54,312.14216157]
[1741269832078,80.8,147.55,147.54,0.14216157]
[1741269833289,80.8,147.55,147.54,6.91996157]
[1741269833491,80.8,147.55,147.54,37.87009208]
[1741269833877,87.576,147.58,147.55,0.14216157]
[1741269834083,80.8,147.57,147.54,0.14216157]
[1741269834278,80.8,147.57,147.54,31.09229208]
[1741269834690,93.1058,147.59,147.56,0.14216157]
[1741269834691,80.83,147.59,147.56,0.14216157]
[1741269834896,0.03,147.59,147.57,31.09229208]
[1741269835081,0.03,147.59,147.58,312.14216157]
[1741269838002,0.03,147.59,147.58,343.09229208]
[1741269838214,0.03,147.59,147.58,350.15251522]
[1741269838409,0.03,147.59,147.58,312.14216157]
[1741269838614,0.03,147.59,147.58,343.09229208]
[1741269838904,0.03,147.59,147.58,349.86819208]
[1741269839979,0.03,147.59,147.58,312.14216157]
[1741269840180,0.03,147.59,147.58,318.91806157]
[1741269840387,0.03,147.59,147.58,349.86819208]
[1741269840817,0.03,147.59,147.58,350.15251522]
[1741269841187,80.8,147.65,147.59,0.42648471]
[1741269841382,80.8,147.65,147.63,0.14216157]
[1741269841581,80.8,147.65,147.63,31.09229208]
[1741269841805,6.7712,147.69,147.65,0.14216157]
[1741269841806,80.8,147.68,147.65,0.14216157]